bitfinex/quotes_SOLUSD_20241117
["timestamp","ask_amount","ask_price","bid_price","bid_amount"]
[1731826629490,23.776884,238.57,238.49,38.80255596]
[1731826630082,38.80255596,238.52,238.4,38.80255596]
[1731826630409,23.776884,238.49,238.4,38.80255596]
[1731826631082,23.776884,238.49,238.37,37.45123551]
[1731826631083,38.80255596,238.42,238.37,22.76843551]
[1731826631280,38.80255596,238.4,238.37,22.76843551]
[1731826631501,23.776884,238.39,238.37,22.76843551]
[1731826632002,4.1946,238.41,238.37,22.76843551]
[1731826632301,23.776884,238.4,238.37,22.76843551]
[1731826633500,27.971284,238.41,238.37,22.76843551]
[1731826633684,23.776884,238.45,238.38,38.80255596]
[1731826633888,23.776884,238.47,238.38,38.92804596]
[1731826634197,38.80255596,238.43,238.38,0.12549]
[1731826636204,62.57943996,238.47,238.38,0.25098]
[1731826636389,38.80255596,238.45,238.38,4.44578]
[1731826637203,38.80255596,238.45,238.38,0.25098]
[1731826638187,42.99625596,238.45,238.38,0.25098]
[1731826638391,10.2494,238.33,238.13,4.1992]
[1731826638586,38.80255596,238.15,238.04,38.80255596]
[1731826638891,38.80255596,238.17,238.08,6.52936775]
[1731826639098,38.80255596,238.21,238.1,38.80255596]
[1731826639316,38.80255596,238.21,238.08,38.80255596]
[1731826639604,38.80255596,238.19,238.08,38.80255596]
[1731826639796,38.80255596,238.13,238.03,4.2011]
[1731826640409,38.80255596,238.15,238.04,38.80255596]
[1731826640619,38.80255596,238.19,238.08,38.80255596]
[1731826641116,38.80255596,238.17,238.06,38.80255596]
[1731826641487,4.1972,238.25,238.06,38.80255596]
[1731826641488,38.80255596,238.15,238.07,14.7015]
[1731826642781,38.80255596,238.17,238.07,14.7015]
[1731826643005,38.80255596,238.15,238.07,14.7015]
[1731826643199,38.80255596,238.13,238.07,10.5011]
[1731826643401,38.80255596,238.11,238.07,10.5011]
[1731826643786,38.80255596,238.11,237.98,21.1101]
[1731826643787,38.80255596,238.09,238.0,10.504]
[1731826643991,38.80255596,238.06,238.0,10.504]
[1731826644713,38.80255596,238.08,238.0,10.504]
[1731826644897,38.80255596,238.06,238.0,10.504]
[1731826645591,38.80255596,238.16,238.0,10.504]
[1731826645592,38.80255596,238.1,238.0,49.30655596]
[1731826646402,4.199,238.16,238.0,49.30655596]
[1731826646606,38.80255596,238.11,238.01,0.25098]
[1731826646803,38.80255596,238.11,238.03,0.25098]
[1731826647188,38.80255596,238.15,238.06,0.25098]
[1731826648312,38.80255596,238.25,238.14,0.25098]
[1731826648493,38.80255596,238.25,238.17,0.25098]
[1731826648693,38.80255596,238.27,238.17,0.25098]
[1731826648908,38.80255596,238.29,238.19,0.25098]
[1731826649116,38.80255596,238.29,238.21,0.12549]
[1731826649398,38.80255596,238.35,238.25,0.25098]
[1731826649604,38.80255596,238.37,238.27,0.25098]
[1731826649808,38.80255596,238.28,238.14,0.1]
[1731826650017,38.80255596,238.28,238.18,0.25098]
[1731826650395,38.80255596,238.28,238.19,14.6941]
[1731826650599,38.80255596,238.3,238.2,0.25098]
[1731826651019,38.80255596,238.32,238.22,0.25098]
[1731826651325,38.80255596,238.32,238.21,38.80255596]
[1731826651326,38.80255596,238.36,238.26,0.25098]
[1731826651619,38.80255596,238.44,238.35,0.25098]
[1731826651804,38.80255596,238.4,238.35,0.25098]
[1731826652006,38.80255596,238.38,238.21,24.127864]
[1731826652200,38.80255596,238.38,238.28,0.25098]
[1731826652410,38.80255596,238.38,238.29,4.1965]
[1731826652710,38.80255596,238.38,238.3,0.25098]
[1731826653116,38.80255596,238.4,238.3,20.25098]
[1731826653289,38.80255596,238.44,238.34,0.25098]
[1731826653489,38.80255596,238.42,238.34,0.25098]
[1731826653918,38.80255596,238.42,238.33,0.25098]
[1731826654299,38.80255596,238.42,238.34,4.1956]
[1731826654505,38.80255596,238.42,238.35,0.25098]
[1731826655317,38.80255596,238.37,238.29,10.4914]
[1731826655496,38.80255596,238.37,238.3,0.25098]
[1731826656515,62.57943996,238.41,238.3,53.74063596]
[1731826657122,38.80255596,238.45,238.36,38.80255596]
[1731826657425,38.80255596,238.49,238.39,0.25098]
[1731826658515,38.80255596,238.47,238.41,0.25098]
[1731826659618,38.80255596,238.49,238.41,10.4861]
[1731826659804,38.80255596,238.51,238.42,39.05353596]
[1731826660311,13.23520011,238.57,238.45,38.80255596]
[1731826660619,38.80255596,238.59,238.5,0.25098]
[1731826660821,4.6730522,238.58,238.5,0.25098]
[1731826661194,38.80255596,238.54,238.44,38.80255596]
[1731826661417,4.7730522,238.58,238.42,0.25098]
[1731826661418,38.80255596,238.52,238.42,0.25098]
[1731826661790,38.80255596,238.52,238.44,0.25098]
[1731826662194,38.80255596,238.5,238.44,0.25098]
[1731826662395,38.80255596,238.48,238.42,0.25098]
[1731826662614,38.80255596,238.54,238.45,0.25098]
[1731826662796,23.776884,238.55,238.47,0.25098]
[1731826663308,38.80255596,238.54,238.45,0.25098]
[1731826663891,38.80255596,238.54,238.45,4.44458]
[1731826665408,23.776884,238.5,238.41,10.4861]
[1731826665713,42.99565596,238.49,238.41,14.6805]
[1731826665897,38.80255596,238.53,238.42,38.80255596]
[1731826666092,38.80255596,238.55,238.46,38.80255596]
[1731826666510,38.80255596,238.55,238.44,38.80255596]
[1731826666707,38.80255596,238.55,238.45,0.25098]
[1731826667122,38.80255596,238.55,238.46,4.1935]
[1731826667308,38.80255596,238.55,238.47,0.25098]
[1731826667717,23.776884,238.52,238.42,38.80255596]
[1731826668016,38.80255596,238.53,238.42,53.48225596]
[1731826668897,38.80255596,238.53,238.43,0.12549]
[1731826670007,38.80255596,238.53,238.44,4.1939]
[1731826670312,38.80255596,238.53,238.45,0.25098]
[1731826671827,38.80255596,238.53,238.47,0.25098]
[1731826672217,38.80255596,238.51,238.44,10.4848]
[1731826672520,23.776884,238.5,238.44,10.4848]
[1731826672925,38.80255596,238.51,238.44,14.6787]
[1731826673428,0.5815522,238.58,238.44,14.6787]
[1731826673429,38.80255596,238.57,238.47,0.25098]
[1731826673613,42.99425596,238.57,238.47,0.25098]
[1731826673812,42.99425596,238.57,238.49,0.25098]
[1731826674418,38.80255596,238.55,238.49,0.25098]
[1731826674813,23.93413536,238.51,238.44,14.6786]
[1731826675013,23.93413536,238.49,238.44,10.4848]
[1731826676212,23.93413536,238.51,238.45,0.25098]
[1731826676520,23.776884,238.53,238.45,0.25098]
[1731826676839,23.776884,238.53,238.47,0.25098]
[1731826677736,23.93413536,238.52,238.47,0.25098]
[1731826678219,23.776884,238.53,238.47,0.25098]
[1731826678420,23.93413536,238.52,238.45,0.25098]
[1731826678819,23.776884,238.51,238.45,0.25098]
[1731826679020,23.93413536,238.5,238.45,0.25098]
[1731826679217,23.93413536,238.56,238.47,0.12549]
[1731826679421,23.93413536,238.56,238.47,0.25098]
[1731826680637,23.93413536,238.56,238.49,0.25098]
[1731826681623,0.4815522,238.58,238.53,0.25098]
[1731826682731,0.4815522,238.58,238.55,0.25098]
[1731826684225,24.41568756,238.58,238.52,0.12549]
[1731826684618,24.41568756,238.58,238.47,4.1933]
[1731826685132,23.93413536,238.56,238.5,10.4821]
[1731826685721,23.93413536,238.56,238.51,0.25098]
[1731826686337,24.41568756,238.58,238.51,0.25098]
[1731826686529,24.41568756,238.58,238.53,0.25098]
[1731826687841,23.93413536,238.55,238.5,10.4821]
[1731826688049,23.93413536,238.52,238.46,4.1935]
[1731826688246,23.93413536,238.5,238.45,27.3602]
[1731826689542,23.93413536,238.54,238.45,27.3602]
[1731826689746,23.93413536,238.56,238.46,44.18511536]
[1731826690335,23.93413536,238.54,238.46,20.25098]
[1731826691346,23.93413536,238.54,238.48,0.25098]
[1731826691936,23.93413536,238.56,238.48,0.25098]
[1731826692130,0.1,238.77,238.6,20.25098]
[1731826692440,23.93413536,238.77,238.66,23.93413536]
[1731826692743,0.1,238.77,238.62,0.12549]
[1731826693053,0.1,238.77,238.62,0.25098]
[1731826693244,4.1883,238.76,238.62,0.25098]
[1731826693425,0.1,238.74,238.55,0.25098]
[1731826693736,0.1,238.73,238.55,0.25098]
[1731826693943,23.93413536,238.66,238.55,24.18511536]
[1731826694241,23.776884,238.67,238.58,0.25098]
[1731826694444,23.776884,238.67,238.59,4.1912]
[1731826694739,23.776884,238.67,238.6,0.12549]
[1731826695245,23.93413536,238.7,238.6,0.25098]
[1731826696234,23.93413536,238.72,238.62,0.25098]
[1731826696633,23.93413536,238.72,238.64,0.25098]
[1731826696871,43.02915636,238.73,238.64,0.25098]
[1731826697142,43.02915636,238.73,238.59,14.6694]
[1731826697143,38.84025636,238.68,238.59,14.6694]
[1731826697451,23.776884,238.67,238.59,53.50965636]
[1731826698335,27.966484,238.69,238.6,0.12549]
[1731826698528,27.966484,238.69,238.6,0.25098]
[1731826698930,23.776884,238.71,238.62,0.12549]
[1731826699449,23.776884,238.71,238.62,0.25098]
[1731826699832,23.776884,238.71,238.63,38.84025636]
[1731826700122,21.5015735,238.82,238.75,160.5]
[1731826700123,0.4646735,238.82,238.75,160.5]
[1731826700326,0.4646735,238.82,238.71,0.25098]
[1731826700327,0.4646735,238.82,238.8,38.84025636]
[1731826700547,0.4646735,238.82,238.77,10.47]
[1731826701046,0.4646735,238.82,238.78,39.09123636]
[1731826702246,0.4646735,238.82,238.77,14.6581]
[1731826702247,0.4646735,238.82,238.81,0.25098]
[1731826702434,0.4646735,238.82,238.81,4.43838]
[1731826706246,0.4646735,238.82,238.81,24.43838]
[1731826706631,47.10569491,238.99,238.86,0.25098]
[1731826706827,38.84025636,239.01,238.9,0.25098]
[1731826707147,38.84025636,239.01,238.92,0.25098]
[1731826707454,47.3126762,239.01,238.92,0.25098]
[1731826707829,0.4646735,239.05,238.93,38.84025636]
[1731826708043,4.1836,239.03,238.94,0.25098]
[1731826708650,0.4646735,239.05,238.99,38.84025636]
[1731826708830,0.4646735,239.05,239.0,0.25098]
[1731826709447,0.4646735,239.05,238.99,38.84025636]
[1731826709649,0.4646735,239.05,238.98,0.25098]
[1731826710245,43.02365636,239.04,238.95,38.84025636]
[1731826710851,0.4646735,239.05,239.01,38.84025636]
[1731826711448,0.4646735,239.05,239.02,0.25098]
[1731826711651,0.4646735,239.05,239.04,0.12549]
[1731826712949,0.4646735,239.05,239.01,38.84025636]
[1731826713155,0.4646735,239.05,238.97,0.12549]
[1731826713457,0.4646735,239.05,238.86,0.1]
[1731826713458,0.1,238.97,238.92,16.724034]
[1731826713659,62.61714036,238.93,238.92,16.724034]
[1731826713956,23.776884,238.98,238.92,16.724034]
[1731826714261,0.1,239.0,238.82,10.4678]
[1731826714262,38.84025636,238.93,238.83,4.1869]
[1731826714439,23.776884,238.92,238.83,4.1869]
[1731826714633,23.776884,238.92,238.85,38.84025636]
[1731826714839,23.776884,238.94,238.85,38.84025636]
[1731826715049,38.84025636,238.95,238.83,14.6545]
[1731826715050,38.84025636,239.01,238.9,38.84025636]
[1731826715251,38.84025636,238.95,238.84,38.84025636]
[1731826716337,23.776884,238.94,238.84,38.84025636]
[1731826716532,23.776884,238.95,238.86,39.09123636]
[1731826716753,23.776884,238.96,238.86,23.97741776]
[1731826716951,23.776884,238.94,238.86,23.85192776]
[1731826717259,23.776884,238.94,238.85,14.6535]
[1731826717564,23.776884,238.94,238.86,23.85192776]
[1731826718354,23.776884,238.94,238.87,0.25098]
[1731826718847,23.776884,238.94,238.87,4.43728]
[1731826720047,23.85192776,238.95,238.87,4.43728]
[1731826720268,23.776884,238.96,238.87,14.90318]
[1731826720762,23.776884,238.98,238.89,0.25098]
[1731826721264,23.85192776,238.99,238.91,0.25098]
[1731826721458,23.85192776,239.01,238.91,0.25098]
[1731826721756,23.85192776,239.01,238.92,23.85192776]
[1731826721957,23.85192776,239.03,238.93,0.25098]
[1731826723064,24.31660126,239.05,238.95,0.25098]
[1731826723853,23.85192776,239.03,238.95,0.25098]
[1731826724238,23.776884,239.02,238.95,0.25098]
[1731826724862,23.776884,239.0,238.92,23.85192776]
[1731826725069,23.776884,238.98,238.88,38.50322776]
[1731826725478,23.776884,238.98,238.9,23.85192776]
[1731826725959,23.776884,238.98,238.91,4.1856]
[1731826726367,23.85192776,238.97,238.88,10.4651]
[1731826726544,23.776884,238.94,238.88,10.4651]
[1731826727666,23.85192776,238.93,238.84,4.1867]
[1731826727847,0.2,238.97,238.83,10.4676]
[1731826727848,23.85192776,238.91,238.83,10.4676]
[1731826728049,27.962684,238.9,238.83,10.4676]
[1731826728759,23.776884,238.9,238.83,10.4676]
[1731826729152,23.776884,238.86,238.78,16.3873]
[1731826729350,23.776884,238.86,238.73,23.85192776]
[1731826729351,23.776884,238.82,238.73,23.85192776]
[1731826729566,23.85192776,238.79,238.72,12.1995]
[1731826729850,23.776884,238.78,238.72,12.1995]
[1731826730051,27.964884,238.78,238.71,34.32482776]
[1731826730661,23.776884,238.78,238.71,34.32482776]
[1731826732757,23.776884,238.68,238.59,38.52112776]
[1731826733074,0.1,238.73,238.63,23.85192776]
[1731826733075,23.776884,238.72,238.63,23.85192776]
[1731826733256,23.776884,238.72,238.64,0.12549]
[1731826733570,23.776884,238.74,238.65,23.85192776]
[1731826734072,23.776884,238.74,238.67,23.85192776]
[1731826734463,23.85192776,238.77,238.68,0.12549]
[1731826734649,35.309,238.9,238.76,0.25098]
[1731826734852,20.13421689,238.96,238.82,23.85192776]
[1731826734853,23.85192776,238.92,238.82,23.85192776]
[1731826735052,23.85192776,238.92,238.74,0.12549]
[1731826735053,23.85192776,238.94,238.85,0.25098]
[1731826735355,23.85192776,238.92,238.83,0.12549]
[1731826735569,0.1,238.98,238.86,23.85192776]
[1731826735766,23.85192776,238.95,238.84,23.85192776]
[1731826736075,23.85192776,238.93,238.84,23.85192776]
[1731826736460,23.85192776,238.93,238.82,23.85192776]
[1731826736671,4.1855,238.92,238.82,28.03912776]
[1731826736862,4.1855,238.92,238.83,38.77326731]
[1731826737357,23.776884,238.91,238.83,38.77326731]
[1731826737560,38.77326731,238.93,238.84,0.12549]
[1731826737761,0.1,238.96,238.85,38.77326731]
[1731826737762,4.1851,238.94,238.85,38.77326731]
[1731826738857,4.1844,238.98,238.87,38.77326731]
[1731826739058,4.1844,238.98,238.88,0.12549]
[1731826739359,4.1844,238.98,238.85,49.24006731]
[1731826739360,38.77326731,238.95,238.85,49.24006731]
[1731826739972,38.77326731,238.93,238.83,42.96026731]
[1731826740180,23.776884,238.92,238.83,38.77326731]
[1731826740677,4.1856,238.91,238.83,38.77326731]
[1731826740854,23.776884,238.9,238.81,38.77326731]
[1731826741055,23.776884,238.9,238.79,10.4691]
[1731826741056,38.77326731,238.89,238.79,49.24236731]
[1731826741350,23.776884,238.88,238.81,38.77326731]
[1731826742673,27.963184,238.88,238.81,38.77326731]
[1731826744269,27.963184,238.88,238.79,49.24236731]
[1731826744574,23.776884,238.86,238.77,38.77326731]
[1731826745558,38.77326731,238.89,238.77,38.77326731]
[1731826745778,38.77326731,238.98,238.88,38.77326731]
[1731826746569,38.77326731,238.98,238.89,4.186]
[1731826746871,23.776884,238.97,238.89,4.186]
[1731826747470,38.77326731,239.0,238.9,38.77326731]
[1731826747663,35.3068,239.02,238.92,38.77326731]
[1731826748267,35.3068,239.02,238.9,39.02424731]
[1731826748268,74.08006731,239.02,238.9,39.02424731]
[1731826748581,74.08006731,239.02,238.9,38.89875731]
[1731826748876,23.776884,239.01,238.91,0.12549]
[1731826749077,23.776884,239.01,238.92,38.77326731]
[1731826749271,74.08006731,239.02,238.92,38.77326731]
[1731826749477,74.08006731,239.02,238.92,42.95866731]
[1731826750367,23.776884,239.01,238.92,38.77326731]
[1731826750566,23.776884,239.01,238.9,39.02424731]
[1731826750869,38.77326731,238.98,238.9,0.12549]
[1731826751065,23.776884,238.97,238.87,0.25098]
[1731826751481,23.776884,238.95,238.86,38.77326731]
[1731826751668,23.776884,238.93,238.78,16.730911]
[1731826751868,38.77326731,238.86,238.78,16.730911]
[1731826752173,38.87326731,238.94,238.78,16.730911]
[1731826752174,38.77326731,238.84,238.78,16.730911]
[1731826752371,38.77326731,238.84,238.73,65.63346731]
[1731826752372,23.776884,238.83,238.73,65.63346731]
[1731826752901,23.776884,238.83,238.73,61.44476731]
[1731826753184,23.776884,238.83,238.73,65.63356731]
[1731826753581,23.776884,238.83,238.75,38.77326731]
[1731826753778,23.776884,238.85,238.78,38.77326731]
[1731826754160,23.776884,238.85,238.79,0.12549]
[1731826754793,27.963684,238.85,238.78,38.77326731]
[1731826755284,27.963684,238.85,238.74,0.25098]
[1731826755467,27.963684,238.85,238.76,38.77326731]
[1731826756264,27.5525505,238.85,238.76,38.77326731]
[1731826756864,51.42850916,238.85,238.75,23.87595866]
[1731826757384,27.5525505,238.85,238.77,23.87595866]
[1731826758277,51.42850916,238.85,238.75,23.87595866]
[1731826758575,23.776884,238.79,238.69,23.87595866]
[1731826759498,23.776884,238.77,238.69,23.87595866]
[1731826759664,23.776884,238.77,238.68,34.35005866]
[1731826761091,27.965184,238.77,238.68,34.35005866]
[1731826761885,27.965184,238.77,238.68,10.4741]
[1731826762381,27.965184,238.77,238.69,23.87595866]
[1731826762583,4.1874,238.81,238.73,23.87595866]
[1731826763792,23.776884,238.8,238.73,23.87595866]
[1731826763974,56.75965866,238.86,238.75,23.87595866]
[1731826764180,60.94635866,238.86,238.77,23.87595866]
[1731826764373,37.0704,238.86,238.77,23.87595866]
[1731826764581,37.0704,238.86,238.79,23.87595866]
[1731826764886,60.94635866,238.86,238.77,23.87595866]
[1731826765288,23.87595866,238.84,238.73,23.87595866]
[1731826765495,23.87595866,238.84,238.74,0.25098]
[1731826765792,23.776884,238.83,238.74,0.25098]
[1731826766588,23.776884,238.81,238.74,0.25098]
[1731826767573,23.776884,238.81,238.76,0.25098]
[1731826767779,23.776884,238.83,238.77,23.87595866]
[1731826768492,23.776884,238.83,238.79,23.87595866]
[1731826768668,23.87595866,238.9,238.81,23.87595866]
[1731826768872,23.87595866,238.94,238.83,23.87595866]
[1731826769403,4.1834,239.04,238.93,23.87595866]
[1731826769769,23.87595866,239.02,238.93,23.87595866]
[1731826770589,28.05935866,239.04,238.93,23.87595866]
[1731826771493,23.776884,239.01,238.93,23.87595866]
[1731826772477,23.776884,239.01,238.92,0.25098]
[1731826773407,23.776884,238.99,238.9,0.25098]
[1731826773576,23.776884,238.97,238.89,23.87595866]
[1731826773895,23.776884,238.97,238.89,0.25098]
[1731826775289,23.87595866,238.96,238.87,23.87595866]
[1731826775595,4.1851,238.94,238.87,23.87595866]
[1731826775801,23.776884,238.93,238.87,23.87595866]
[1731826777878,23.87595866,239.02,238.92,0.25098]
[1731826779015,4.1839,239.01,238.92,0.25098]
[1731826779975,0.4646735,239.05,238.97,0.25098]
[1731826780175,4.6479735,239.05,238.96,23.87595866]
[1731826780981,4.6479735,239.05,238.96,28.06065866]
[1731826781301,4.6479735,239.05,238.96,23.87595866]
[1731826781495,23.87595866,239.04,238.95,0.25098]
[1731826781874,23.776884,239.04,238.96,23.87595866]
[1731826783000,23.776884,239.03,238.96,23.87595866]
[1731826783205,23.776884,239.03,238.95,4.43578]
[1731826783505,23.776884,239.04,238.95,14.89818]
[1731826784100,23.776884,239.04,238.96,23.87595866]
[1731826784477,23.776884,239.04,238.96,28.06065866]
[1731826784694,23.776884,239.03,238.96,28.06065866]
[1731826784893,23.776884,239.03,238.98,23.87595866]
[1731826785677,23.776884,239.03,238.96,4.1847]
[1731826785678,23.776884,239.03,238.96,28.06065866]
[1731826786507,23.776884,239.0,238.89,10.4646]
[1731826786707,23.776884,239.0,238.9,23.87595866]
[1731826786929,23.87595866,238.99,238.9,23.87595866]
[1731826787090,23.776884,238.98,238.9,23.87595866]
[1731826788592,23.776884,238.96,238.9,23.87595866]
[1731826789388,23.776884,238.96,238.95,23.87595866]
[1731826789892,4.1838,239.02,238.95,23.87595866]
[1731826790895,23.776884,239.01,238.95,23.87595866]
[1731826791094,4.1834,239.04,238.94,0.25098]
[1731826791293,0.4646735,239.05,238.97,23.87595866]
[1731826791603,0.0884735,239.05,238.98,45.34098]
[1731826791817,0.4646735,239.29,239.26,20.25098]
[1731826791993,25.72555451,239.47,239.26,20.25098]
[1731826791994,6.47785597,239.52,239.3,0.1]
[1731826792193,6.47785597,239.52,239.29,20.0]
[1731826792194,0.04646735,239.52,239.32,0.1]
[1731826792396,0.04646735,239.52,239.47,23.87595866]
[1731826792707,0.04646735,239.52,239.45,23.87595866]
[1731826792891,0.04646735,239.52,239.34,10.4453]
[1731826793092,0.04646735,239.52,239.45,23.87595866]
[1731826793406,0.04646735,239.52,239.34,10.4453]
[1731826793607,0.04646735,239.52,239.45,23.87595866]
[1731826794091,23.82335135,239.52,239.45,23.87595866]
[1731826794806,23.82335135,239.52,239.45,38.57766847]
[1731826794983,23.776884,239.5,239.37,0.25098]
[1731826795193,23.776884,239.5,239.41,38.57766847]
[1731826795498,23.776884,239.5,239.43,38.57766847]
[1731826796718,23.776884,239.48,239.41,38.57766847]
[1731826798909,23.776884,239.46,239.39,38.57766847]
[1731826799296,23.776884,239.46,239.42,38.57766847]
[1731826799598,23.776884,239.46,239.4,38.57766847]
[1731826801215,23.776884,239.46,239.38,38.57766847]
[1731826801402,23.776884,239.46,239.36,4.1778]
[1731826801403,23.776884,239.46,239.4,38.57766847]
[1731826801937,38.62413582,239.52,239.37,0.12549]
[1731826801938,23.776884,239.48,239.44,38.57766847]
[1731826802119,4.1752,239.51,239.44,38.57766847]
[1731826802897,0.04646735,239.52,239.44,38.57766847]
[1731826803087,0.04646735,239.52,239.42,38.57766847]
[1731826803288,62.40101982,239.52,239.42,38.57766847]
[1731826804102,23.776884,239.5,239.42,38.57766847]
[1731826805296,4.1751,239.51,239.46,38.57766847]
[1731826806020,0.04646735,239.52,239.46,38.57766847]
[1731826807116,23.82335135,239.52,239.46,38.57766847]
[1731826807614,0.04646735,239.52,239.48,38.57766847]
[1731826808494,0.04646735,239.52,239.51,0.25098]
[1731826808819,0.04646735,239.52,239.5,38.57766847]
[1731826809394,0.04646735,239.52,239.51,0.25098]
[1731826810015,0.04646735,239.52,239.5,38.57766847]
[1731826810222,0.04095898,239.53,239.5,38.57766847]
[1731826810720,0.04095898,239.53,239.52,38.57766847]
[1731826811400,0.12287689,239.6,239.52,38.57766847]
[1731826811915,0.12287689,239.6,239.54,38.57766847]
[1731826812308,0.12287689,239.6,239.55,0.25098]
[1731826812490,0.12287689,239.6,239.58,38.57766847]
[1731826812700,0.12287689,239.6,239.59,38.82864847]
[1731826813517,0.12287689,239.6,239.59,58.82864847]
[1731826813708,4.21726735,239.76,239.61,0.25098]
[1731826813911,4.21726735,239.76,239.7,38.57766847]
[1731826814721,0.04646735,239.76,239.72,38.57766847]
[1731826815220,0.04646735,239.76,239.62,0.1]
[1731826815221,0.04646735,239.76,239.7,38.57766847]
[1731826815394,0.04646735,239.76,239.67,0.12549]
[1731826815595,0.04646735,239.76,239.67,0.25098]
[1731826816616,38.57766847,239.74,239.67,0.25098]
[1731826816815,23.70162877,239.73,239.67,0.25098]
[1731826817530,23.70162877,239.75,239.67,0.25098]
[1731826817703,23.776884,239.74,239.66,0.25098]
[1731826818025,27.947984,239.74,239.59,38.30972877]
[1731826818201,23.70162877,239.71,239.59,38.30972877]
[1731826818406,27.947984,239.74,239.59,38.30972877]
[1731826818407,23.70162877,239.69,239.59,38.30972877]
[1731826818626,23.776884,239.68,239.59,38.30972877]
[1731826819921,23.776884,239.68,239.6,0.12549]
[1731826820105,23.776884,239.68,239.6,0.25098]
[1731826820307,23.70162877,239.65,239.55,4.1743]
[1731826820523,23.70162877,239.59,239.48,23.70162877]
[1731826821396,4.1724,239.67,239.42,14.6186]
[1731826821397,23.70162877,239.53,239.42,14.6186]
[1731826821617,23.776884,239.52,239.44,23.70162877]
[1731826822035,23.776884,239.48,239.41,12.4793]
[1731826822327,23.776884,239.48,239.38,38.32262877]
[1731826822624,23.776884,239.46,239.38,23.70162877]
[1731826822806,23.70162877,239.45,239.34,23.70162877]
[1731826823007,23.776884,239.44,239.34,23.70162877]
[1731826823237,23.776884,239.44,239.36,23.70162877]
[1731826823527,23.776884,239.5,239.4,23.70162877]
[1731826823823,23.776884,239.5,239.4,27.87852877]
[1731826824132,23.776884,239.5,239.42,23.70162877]
[1731826824454,23.776884,239.52,239.43,0.12549]
[1731826824637,23.776884,239.52,239.42,23.70162877]
[1731826825420,32.7404,239.62,239.45,0.25098]
[1731826825421,27.87612877,239.55,239.45,0.25098]
[1731826825606,23.776884,239.54,239.46,23.70162877]
[1731826825803,23.70162877,239.56,239.46,23.70162877]
[1731826826318,23.70162877,239.5,239.4,23.70162877]
[1731826826524,4.2741,239.57,239.28,0.1]
[1731826826525,23.70162877,239.46,239.36,23.70162877]
[1731826827020,23.776884,239.45,239.36,23.70162877]
[1731826827201,23.776884,239.45,239.34,34.14682877]
[1731826827397,14.6094,239.57,239.26,35.1018]
[1731826827398,23.776884,239.41,239.32,23.70162877]
[1731826827616,23.776884,239.41,239.32,27.87992877]
[1731826828119,27.953384,239.43,239.32,27.87992877]
[1731826828420,23.776884,239.41,239.32,23.70162877]
[1731826828724,0.1,239.48,239.27,12.4793]
[1731826828725,27.953084,239.45,239.34,23.70162877]
[1731826828913,27.953084,239.45,239.35,38.60501889]
[1731826829431,27.952984,239.46,239.37,38.60501889]
[1731826830821,38.60501889,239.44,239.34,38.60501889]
[1731826831126,23.776884,239.43,239.34,38.60501889]
[1731826831332,23.776884,239.45,239.34,38.60501889]
[1731826832331,23.776884,239.43,239.32,38.60501889]
[1731826834331,23.776884,239.41,239.32,38.60501889]
[1731826835633,23.776884,239.39,239.3,38.60501889]
[1731826835823,23.776884,239.37,239.28,38.60501889]
[1731826836133,23.776884,239.37,239.27,0.12549]
[1731826836325,38.60501889,239.29,239.2,16.702537]
[1731826836531,23.776884,239.21,239.11,22.5753]
[1731826836848,23.776884,239.11,239.04,17.43856876]
[1731826837014,23.776884,239.11,239.03,38.60501889]
[1731826837640,38.60501889,239.08,239.0,3.24]
[1731826837936,38.60501889,239.08,238.99,38.60501889]
[1731826837937,23.776884,239.07,238.99,38.60501889]
[1731826838119,23.776884,239.09,238.99,42.78911889]
[1731826838430,23.776884,239.11,239.01,38.60501889]
[1731826838635,38.60501889,239.1,239.01,38.60501889]
[1731826838932,4.182,239.12,238.99,49.06561889]
[1731826838933,38.60501889,239.08,238.99,49.06561889]
[1731826839141,23.776884,239.07,239.01,38.60501889]
[1731826839327,4.182,239.12,239.03,38.60501889]
[1731826839531,23.776884,239.13,239.05,38.60501889]
[1731826840224,23.776884,239.13,239.03,38.60501889]
[1731826840406,38.60501889,239.12,239.03,38.60501889]
[1731826840613,23.776884,239.11,239.03,38.60501889]
[1731826840932,42.78561889,239.2,239.09,38.60501889]
[1731826841105,4.1806,239.2,239.11,38.60501889]
[1731826841714,4.1806,239.2,239.08,0.12549]